fUSD/lending_fUSD_20240930
["ID","MTS","AMOUNT","RATE_DAILY","PERIOD"]
[339592164,1727722242323,-287.07970936,0.00012384,2]
[339592166,1727722242331,-150.0,0.00012384,2]
[339592169,1727722242342,-150.0,0.00012384,2]
[339592172,1727722242351,-171.48637452,0.0001239,2]
[339592174,1727722242360,-500.0,0.00012394,2]
[339592176,1727722242369,-7331.7250374,0.00012395,2]
[339592178,1727722242378,-53793.65613692,0.00012397,2]
[339592180,1727722242388,-500.0,0.00012399,2]
[339592182,1727722242397,-1000.0,0.00012399,2]
[339592184,1727722242407,-518.0,0.000124,2]
[339592185,1727722242416,-176949.37513318,0.000124,2]
[339592190,1727722242436,-512.66576218,0.000124,2]
[339592229,1727722242802,-300.0,0.00010504,2]
[339592231,1727722242811,-33623.85933288,0.000124,2]
[339592233,1727722242823,-4700.98255376,0.000124,2]
[339592235,1727722242832,-1564.85177719,0.000124,2]
[339592237,1727722242843,-3055.22213027,0.000124,2]
[339592239,1727722242854,-3742.28960801,0.000124,2]
[339592551,1727722246299,-34.5398,0.000124,2]
[339592554,1727722246315,-5558.9130935,0.000124,2]
[339593298,1727722675150,10000.0,0.00013576,60]
[339593324,1727722727270,192.73,9.49e-05,2]
[339593639,1727723344857,150.0,0.00015,30]
[339593662,1727723378864,213.21,9.073e-05,2]
[339593680,1727723417993,30000.0,0.00015,30]
[339593688,1727723431593,-300.0,0.000109,2]
[339593689,1727723431646,-514.68801391,0.000109,2]
[339593690,1727723431657,-447.99582645,0.000109,2]
[339593691,1727723431798,-7820.07221708,0.000109,2]
[339593692,1727723431950,-4189.76284256,0.000109,2]
[339593693,1727723431961,-167.35,0.00010959,2]
[339593694,1727723431971,-1050.0,0.00011,2]
[339593695,1727723431980,-257.16,0.00011008,2]
[339593696,1727723431990,-759.60919008,0.00011042,2]
[339593855,1727723437759,-368.38415607,0.00011042,2]
[339593856,1727723437768,-208.81,0.00011043,2]
[339593857,1727723437778,-221.29,0.00011074,2]
[339593858,1727723437787,-250.0,0.00011076,2]
[339593859,1727723437796,-1326.0,0.0001108,2]
[339593860,1727723437806,-250.0,0.00011119,2]
[339593861,1727723437815,-289.31,0.00011153,2]
[339593862,1727723437824,-1000.0,0.00011242,2]
[339593863,1727723437834,-800.0,0.00011253,2]
[339593864,1727723437843,-1448.45,0.00011289,2]
[339593865,1727723437853,-175.99,0.00011323,2]
[339593866,1727723437862,-187.7597,0.00011328,2]
[339593867,1727723437871,-213.21,0.00011337,2]
[339593868,1727723437881,-166.09,0.00011393,2]
[339593869,1727723437890,-1271.8256352,0.0001191,2]
[339593870,1727723437899,-150.0,0.00011978,2]
[339593871,1727723437908,-176.603763,0.00012058,2]
[339593872,1727723437917,-180.0,0.00012179,2]
[339593873,1727723437926,-300.083,0.00012186,2]
[339593874,1727723437936,-1080.0,0.00012186,2]
[339593875,1727723437946,-150.0,0.00012209,2]
[339593876,1727723437956,-176.603763,0.00012209,2]
[339593877,1727723437965,-372.43310373,0.00012217,2]
[339593878,1727723437975,-150.0,0.00012276,2]
[339593879,1727723437984,-2500.0,0.00012295,2]
[339593880,1727723437993,-2500.0,0.000123,2]
[339593881,1727723438003,-13262.331,0.000123,2]
[339593883,1727723438012,-8943.425879,0.000123,2]
[339593884,1727723438024,-299.58797889,0.000123,2]
[339593885,1727723438035,-5900.23824211,0.000123,2]
[339593886,1727723438044,-1491.33323203,0.000123,2]
[339593887,1727723438054,-2703.8681,0.000123,2]
[339593888,1727723438063,-1439.04184589,0.000123,2]
[339593889,1727723438072,-500.0,0.00012301,2]
[339593890,1727723438081,-500.0,0.00012301,2]
[339593891,1727723438091,-259.48905798,0.00012346,2]
[339593892,1727723438357,-720.68499204,0.00012346,2]
[339593893,1727723438367,-1491.33323197,0.00012356,2]
[339593894,1727723438378,-176.603763,0.0001236,2]
[339593895,1727723438387,-789.515,0.00012378,2]
[339593896,1727723438397,-194.32523399,0.00012378,2]
[339593897,1727723438409,-54.85876601,0.00012378,2]
[339593898,1727723438419,-257.16,0.00012384,2]
[339593899,1727723438430,-1667.829114,0.00012395,2]
[339593900,1727723438439,-4252.46521999,0.00012395,2]
[339593904,1727723439670,-317.461428,0.00012395,2]
[339593967,1727723445691,-402.58844964,0.00011898,2]
[339593968,1727723445704,-2547.98442942,0.00012395,2]
[339594360,1727724098648,214.77,9.356e-05,2]
[339594590,1727724571506,-300.0,0.00010723,2]
[339594591,1727724571528,-250.0,0.00010777,2]
[339594592,1727724571550,-218.04,0.00010832,2]
[339594593,1727724571573,-159.86,0.00010959,2]
[339594594,1727724571595,-172.23,0.00010959,2]
[339594595,1727724571617,-165.67827755,0.00010968,2]
[339594596,1727724571640,-214.65479573,0.00010968,2]
[339594597,1727724571662,-500.0,0.00010973,2]
[339594598,1727724571685,-166.09,0.00010986,2]
[339594599,1727724571708,-178.5905759,0.00010997,2]
[339594600,1727724571732,-300.0,0.00010998,2]
[339594601,1727724571754,-150.0,0.00010999,2]
[339594603,1727724579994,-2224.85635082,0.00010999,2]
[339594618,1727724603613,-925.56339026,0.000109,2]
[339594619,1727724603636,-300.0,0.00010998,2]
[339594620,1727724603658,-150.0,0.00010998,2]
[339594621,1727724603686,-3624.43660974,0.00010999,2]
[339594648,1727724631847,-4127.21276994,0.000109,2]
[339594649,1727724631857,-152.86,0.00010989,2]
[339594650,1727724631867,-199.15185173,0.0001099,2]
[339594651,1727724631877,-178.59057591,0.00010997,2]
[339594652,1727724631885,-108185.68854836,0.00011,2]
[339594653,1727724631899,-14092.47675511,0.00011,2]
[339594654,1727724631910,-1012.2128544,0.00011,2]
[339594655,1727724631927,-1500.0,0.00011,2]
[339594656,1727724632051,-708.27762646,0.00011,2]
[339594742,1727724637986,-1379.76869336,0.00010999,2]
[339594743,1727724638115,-1000.0,0.00010999,2]
[339594744,1727724638127,-364.55288824,0.00010999,2]
[339594745,1727724638151,-31751.49999998,0.00010999,2]
[339594746,1727724638162,-1231.76374629,0.00010999,2]
[339594747,1727724638378,-3365.95,0.00010999,2]
[339594752,1727724640124,-294295.31463179,0.00010999,2]
[339594753,1727724640263,-1297.0,0.00010999,2]
[339594770,1727724643143,-173200.76636661,0.00010999,2]
[339594771,1727724643152,-408932.56592467,0.00011,2]
[339594772,1727724643163,-250.0,0.00011069,2]
[339594773,1727724643173,-352.45434179,0.00011069,2]
[339594774,1727724643183,-500.0,0.00011069,2]
[339594775,1727724643193,-500.0,0.00011069,2]
[339594776,1727724643202,-500.0,0.00011069,2]
[339594777,1727724643211,-564.54864603,0.00011069,2]
[339594778,1727724643221,-20583.64,0.0001107,2]
[339594779,1727724643230,-500.0,0.00011072,2]
[339594780,1727724643239,-4127.21276991,0.00011111,2]
[339594781,1727724643248,-150.0,0.0001113,2]
[339594782,1727724643258,-150.0,0.00011145,2]
[339594783,1727724643267,-150.0,0.00011145,2]
[339594784,1727724643277,-150.0,0.00011145,2]
[339594785,1727724643286,-230.27365888,0.00011145,2]
[339594786,1727724643297,-150.0,0.00011145,2]
[339594787,1727724643307,-925.56339026,0.00011171,2]
[339594788,1727724643316,-800.0,0.00011239,2]
[339594789,1727724643325,-221.29,0.00011321,2]
[339594790,1727724643335,-4127.21276991,0.00011322,2]
[339594791,1727724643346,-198.94,0.00011383,2]
[339594792,1727724643356,-925.56339026,0.00011443,2]
[339594793,1727724643365,-4127.21276991,0.00011533,2]
[339594794,1727724643375,-200.0,0.00011654,2]
[339594795,1727724643384,-925.56339026,0.00011714,2]
[339594796,1727724643398,-4127.21276991,0.00011744,2]
[339594797,1727724643407,-925.56339026,0.00011986,2]
[339594798,1727724643416,-938.14354082,0.00012001,2]
[339594799,1727724643427,-938.14354083,0.00012001,2]
[339594800,1727724643437,-180.0,0.00012055,2]
[339594801,1727724643446,-229.144848,0.00012058,2]
[339594802,1727724643455,-158.159082,0.00012058,2]
[339594803,1727724643464,-420.0,0.00012086,2]
[339594804,1727724643475,-1000.0,0.000121,2]
[339594805,1727724643484,-360.00423274,0.00012156,2]
[339594806,1727724643494,-214.65479573,0.00012199,2]
[339594808,1727724643503,-137275.88345149,0.00012214,2]
[339594810,1727724643513,-925.56339026,0.00012257,2]
[339594811,1727724643522,-62944.287014,0.00012258,2]
[339594812,1727724643531,-8487.1344,0.00012299,2]
[339594813,1727724643540,-4899.9963,0.00012299,2]
[339594814,1727724643550,-3612.2717,0.00012299,2]
[339594815,1727724643559,-801.5619,0.00012299,2]
[339594816,1727724643568,-8077.141,0.000123,2]
[339594817,1727724643578,-500.0,0.000123,2]
[339594818,1727724643587,-200.0,0.000123,2]
[339594819,1727724643596,-7500.0,0.000123,2]
[339594820,1727724643606,-200.74567328,0.000123,2]
[339594821,1727724643615,-234.3563896,0.000123,2]
[339594822,1727724643788,-500.0,0.00012301,2]
[339594823,1727724643798,-500.0,0.00012301,2]
[339594824,1727724643808,-500.0,0.00012301,2]
[339594825,1727724643817,-200.0,0.00012301,2]
[339594826,1727724643826,-151.0,0.00012329,2]
[339594827,1727724643835,-151.0,0.00012329,2]
[339594828,1727724643844,-458.839458,0.00012329,2]
[339594829,1727724643853,-458.839458,0.00012329,2]
[339594830,1727724643862,-500.0,0.00012373,2]
[339594831,1727724643871,-254.64807538,0.00012373,2]
[339594832,1727724643880,-500.0,0.00012373,2]
[339594833,1727724643889,-500.0,0.00012373,2]
[339594834,1727724643899,-724.448,0.00012373,2]
[339594835,1727724643910,-236.492,0.00012373,2]
[339594836,1727724643920,-5965.97498124,0.00012375,2]
[339594837,1727724643931,-203.00244327,0.00012379,2]
[339594838,1727724643940,-394.11612156,0.00012379,2]
[339594839,1727724643950,-371645.54995195,0.0001238,2]
[339594840,1727724643960,-160.057224,0.0001238,2]
[339594841,1727724643969,-151.0,0.0001238,2]
[339594842,1727724643979,-151.0,0.0001238,2]
[339594843,1727724643989,-458.839458,0.0001238,2]
[339594844,1727724643998,-458.839458,0.0001238,2]
[339594845,1727724644008,-150.0,0.00012384,2]
[339594846,1727724644017,-46570.3449407,0.00012395,2]
[339594847,1727724644026,-6197.9525501,0.00012395,2]
[339594848,1727724644036,-948.6812575,0.00012395,2]
[339594849,1727724644045,-614.3346829,0.00012395,2]
[339594850,1727724644055,-1026.2037181,0.00012395,2]
[339594851,1727724644065,-178.59057591,0.00012397,2]
[339594852,1727724644074,-1475.28643953,0.00012399,3]
[339594853,1727724644083,-500.0,0.00012399,2]
[339594854,1727724644093,-2216099.53966167,0.000124,2]
[339594855,1727724644102,-1174.0,0.000124,2]
[339594856,1727724644111,-151.0,0.000124,2]
[339594857,1727724644120,-151.0,0.000124,2]
[339594858,1727724644131,-151.0,0.000124,2]
[339594859,1727724644140,-458.839458,0.000124,2]
[339594860,1727724644150,-458.839458,0.000124,2]
[339594861,1727724644159,-500.0,0.00012403,2]
[339594862,1727724644168,-150.0,0.00012411,2]
[339594863,1727724644179,-150.0,0.00012411,2]
[339594864,1727724644187,-150.0,0.00012411,2]
[339594865,1727724644196,-150.0,0.00012411,2]
[339594866,1727724644206,-150.0,0.00012411,2]
[339594867,1727724644215,-300.0,0.00012411,2]
[339594868,1727724644225,-500.0,0.00012412,2]
[339594869,1727724644234,-500.0,0.00012421,2]
[339594870,1727724644243,-500.0,0.00012421,2]
[339594871,1727724644252,-500.0,0.00012427,2]
[339594872,1727724644262,-500.0,0.0001243,2]
[339594873,1727724644271,-500.0,0.0001243,2]
[339594874,1727724644280,-500.0,0.0001243,2]
[339594875,1727724644289,-500.0,0.00012438,2]
[339594876,1727724644299,-500.0,0.00012438,2]
[339594877,1727724644308,-500.0,0.00012438,2]
[339594878,1727724644317,-11789.79230686,0.00012444,2]
[339594879,1727724644326,-169.34,0.00012445,2]
[339594880,1727724644335,-167.46,0.00012445,2]
[339594881,1727724644344,-167.63,0.00012445,2]
[339594882,1727724644354,-500.0,0.00012447,2]
[339594883,1727724644363,-500.0,0.00012447,2]
[339594884,1727724644372,-500.0,0.00012447,2]
[339594885,1727724644381,-500.0,0.00012454,2]
[339594886,1727724644391,-500.0,0.00012456,2]
[339594887,1727724644404,-500.0,0.00012456,2]
[339594888,1727724644413,-500.0,0.00012456,2]
[339594889,1727724644424,-500.0,0.00012465,2]
[339594890,1727724644434,-500.0,0.00012465,2]
[339594891,1727724644443,-500.0,0.00012465,2]
[339594892,1727724644453,-1000.0,0.0001247,2]
[339594893,1727724644462,-500.0,0.0001247,2]
[339594894,1727724644471,-1000.0,0.0001247,2]
[339594895,1727724644480,-500.0,0.0001247,2]
[339594896,1727724644489,-1000.0,0.0001247,2]
[339594897,1727724644498,-500.0,0.0001247,2]
[339594898,1727724644507,-1000.0,0.0001247,2]
[339594899,1727724644516,-500.0,0.0001247,2]
[339594900,1727724644525,-500.0,0.00012474,2]
[339594901,1727724644534,-500.0,0.00012474,2]
[339594902,1727724644544,-500.0,0.00012474,2]
[339594903,1727724644553,-200.69274384,0.00012481,2]
[339594904,1727724644562,-500.0,0.00012482,2]
[339594905,1727724644571,-500.0,0.00012482,2]
[339594906,1727724644580,-500.0,0.00012482,2]
[339594907,1727724644590,-500.0,0.00012491,2]
[339594908,1727724644599,-500.0,0.00012491,2]
[339594909,1727724644608,-500.0,0.00012491,2]
[339594910,1727724644617,-193.783932,0.00012493,2]
[339594911,1727724644625,-193.783932,0.00012493,2]
[339594912,1727724644634,-193.783932,0.00012493,2]
[339594913,1727724644644,-167.043856,0.00012493,2]
[339594914,1727724644653,-167.043856,0.00012493,2]
[339594915,1727724644662,-167.043856,0.00012493,2]
[339594916,1727724644672,-167.043856,0.00012493,2]
[339594917,1727724644681,-219.534918,0.00012493,2]
[339594918,1727724644691,-219.534918,0.00012493,2]
[339594919,1727724644700,-219.534918,0.00012493,2]
[339594920,1727724644710,-219.534918,0.00012493,2]
[339594921,1727724644719,-6463.0290573,0.00012493,2]
[339594922,1727724644728,-150.0,0.00012499,2]
[339594923,1727724644737,-199.2,0.000125,2]
[339594924,1727724644746,-500.0,0.000125,2]
[339594925,1727724644755,-500.0,0.000125,2]
[339594926,1727724644767,-500.0,0.000125,2]
[339594927,1727724644778,-1000.0,0.000125,2]
[339594928,1727724644788,-1000.0,0.000125,2]
[339594929,1727724644798,-1000.0,0.000125,2]
[339594930,1727724644808,-1000.0,0.000125,2]
[339594931,1727724644817,-1000.0,0.000125,2]
[339594932,1727724644827,-1000.0,0.000125,2]
[339594933,1727724644836,-1000.0,0.000125,2]
[339594934,1727724644847,-1000.0,0.000125,2]
[339594935,1727724644856,-1000.0,0.000125,2]
[339594936,1727724644866,-1000.0,0.000125,2]
[339594937,1727724644875,-500.0,0.000125,2]
[339594938,1727724644885,-1003.68,0.000125,2]
[339594939,1727724644894,-200.0,0.000125,2]
[339594940,1727724644904,-262.25714595,0.000125,2]
[339594941,1727724644914,-176.603763,0.00012511,2]
[339594942,1727724644923,-150.0,0.00012528,2]
[339594943,1727724644944,-250.0,0.00012528,2]
[339594944,1727724644953,-238.714,0.00012528,2]
[339594945,1727724644962,-925.56339026,0.00012529,2]
[339594946,1727724644971,-234.3563896,0.0001255,2]
[339594947,1727724644981,-155.0,0.0001256,2]
[339594948,1727724644990,-151.0,0.00012576,2]
[339594949,1727724644999,-216.020476,0.00012576,2]
[339594950,1727724645009,-151.0,0.00012576,2]
[339594951,1727724645019,-458.839458,0.00012576,2]
[339594952,1727724645028,-458.839458,0.00012576,2]
[339594953,1727724645037,-151.0,0.00012632,2]
[339594954,1727724645046,-151.0,0.00012632,2]
[339594955,1727724645056,-151.0,0.00012632,2]
[339594956,1727724645065,-800.0,0.00012644,2]
[339594957,1727724645074,-176.603763,0.00012661,2]
[339594958,1727724645084,-2056.68655181,0.00012746,2]
[339594959,1727724645093,-151.38,0.00012789,2]
[339594960,1727724645102,-150.0,0.00012795,2]
[339594961,1727724645112,-166.24824724,0.000128,2]
[339594962,1727724645121,-166.24824724,0.000128,2]
[339594963,1727724645130,-166.74,0.000128,2]
[339594964,1727724645139,-157.50723015,0.000128,2]
[339594965,1727724645149,-157.50723015,0.000128,2]
[339594966,1727724645158,-157.50723015,0.000128,2]
[339594967,1727724645167,-157.50723015,0.000128,2]
[339594968,1727724645179,-158.0,0.000128,2]
[339594969,1727724645188,-157.58223015,0.000128,2]
[339594970,1727724645198,-157.58223015,0.000128,2]
[339594971,1727724645207,-157.58223015,0.000128,2]
[339594972,1727724645216,-157.58223015,0.000128,2]
[339594973,1727724645225,-157.58223015,0.000128,2]
[339594974,1727724645235,-157.58223015,0.000128,2]
[339594975,1727724645244,-157.58223015,0.000128,2]
[339594976,1727724645254,-157.58223015,0.000128,2]
[339594977,1727724645263,-157.58223015,0.000128,2]
[339594978,1727724645273,-157.58223015,0.000128,2]
[339594979,1727724645282,-157.58223015,0.000128,2]
[339594980,1727724645291,-157.58223015,0.000128,2]
[339594981,1727724645300,-157.58223015,0.000128,2]
[339594982,1727724645309,-157.58223015,0.000128,2]
[339594983,1727724645318,-157.58223015,0.000128,2]
[339594984,1727724645327,-157.58223015,0.000128,2]
[339594985,1727724645337,-157.58223015,0.000128,2]
[339594986,1727724645346,-157.58223015,0.000128,2]
[339594987,1727724645356,-157.58223015,0.000128,2]
[339594988,1727724645366,-158.08,0.000128,2]
[339594989,1727724645375,-165.67827754,0.000128,2]
[339594990,1727724645384,-284.8,0.000128,2]
[339594991,1727724645395,-162.67593216,0.000128,2]
[339594992,1727724645406,-162.67593216,0.000128,2]
[339594993,1727724645415,-162.67593216,0.000128,2]
[339594994,1727724645425,-162.67593216,0.000128,2]
[339594995,1727724645435,-162.67593216,0.000128,2]
[339594996,1727724645444,-162.67593216,0.000128,2]
[339594997,1727724645453,-163.17,0.000128,2]
[339594998,1727724645462,-234.3563896,0.000128,2]
[339594999,1727724645472,-925.56339026,0.000128,2]
[339595000,1727724645481,-198.94,0.00012806,2]
[339595001,1727724645491,-151.0,0.00012818,2]
[339595002,1727724645501,-151.0,0.00012818,2]
[339595003,1727724645511,-151.0,0.00012818,2]
[339595004,1727724645521,-151.0,0.00012861,2]
[339595005,1727724645530,-151.0,0.00012861,2]
[339595006,1727724645541,-151.0,0.00012861,2]
[339595007,1727724645550,-151.0,0.00012861,2]
[339595008,1727724645560,-151.038008,0.00012861,2]
[339595009,1727724645569,-151.0,0.00012861,2]
[339595010,1727724645579,-47627.59705991,0.00012861,2]
[339595011,1727724645588,-1000.0,0.0001287,2]
[339595012,1727724645597,-500.0,0.0001287,2]
[339595013,1727724645607,-1000.0,0.0001287,2]
[339595014,1727724645616,-500.0,0.0001287,2]
[339595015,1727724645626,-1748.27828253,0.0001287,2]
[339595016,1727724645635,-151.0,0.0001287,2]
[339595017,1727724645646,-151.0,0.0001287,2]
[339595018,1727724645655,-151.0,0.0001287,2]
[339595019,1727724645665,-151.0,0.0001287,2]
[339595020,1727724645675,-458.839458,0.0001287,2]
[339595021,1727724645685,-458.839458,0.0001287,2]
[339595022,1727724645694,-156.60221652,0.00012873,2]
[339595023,1727724645704,-500.0,0.00012873,2]
[339595024,1727724645714,-500.0,0.00012873,2]
[339595025,1727724645723,-200.43930924,0.00012873,2]
[339595026,1727724645732,-178.59057591,0.00012873,2]
[339595027,1727724645742,-1475.28643953,0.00012875,3]
[339595028,1727724645751,-1959.81366793,0.00012876,2]
[339595029,1727724645760,-324.0,0.00012876,2]
[339595030,1727724645770,-324.0,0.00012876,2]
[339595031,1727724645779,-324.0,0.00012876,2]
[339595032,1727724645788,-324.0,0.00012876,2]
[339595033,1727724645798,-324.0,0.00012876,2]
[339595035,1727724645808,-324.0,0.00012876,2]
[339595036,1727724645817,-324.0,0.00012876,2]
[339595037,1727724645827,-324.0,0.00012876,2]
[339595038,1727724645837,-324.0,0.00012876,2]
[339595040,1727724645847,-324.0,0.00012876,2]
[339595042,1727724645856,-324.0,0.00012876,2]
[339595043,1727724645866,-324.0,0.00012876,2]
[339595044,1727724645875,-324.0,0.00012876,2]
[339595045,1727724645885,-324.0,0.00012876,2]
[339595046,1727724645895,-324.0,0.00012876,2]
[339595047,1727724645904,-324.0,0.00012876,2]
[339595048,1727724645914,-324.0,0.00012876,2]
[339595049,1727724645924,-324.0,0.00012876,2]
[339595050,1727724645934,-324.0,0.00012876,2]
[339595051,1727724645943,-324.0,0.00012876,2]
[339595052,1727724645953,-151.0,0.00012876,2]
[339595053,1727724645962,-151.0,0.00012876,2]
[339595054,1727724645972,-151.0,0.00012876,2]
[339595055,1727724645982,-151.0,0.00012876,2]
[339595056,1727724645991,-151.0,0.00012876,2]
[339595057,1727724646000,-151.0,0.00012876,2]
[339595058,1727724646009,-500.0,0.00012876,2]
[339595059,1727724646020,-151.0,0.00012876,2]
[339595060,1727724646030,-500.0,0.00012876,2]
[339595061,1727724646040,-151.0,0.00012876,2]
[339595062,1727724646049,-500.0,0.00012876,2]
[339595063,1727724646059,-151.0,0.00012876,2]
[339595064,1727724646069,-500.0,0.00012876,2]
[339595065,1727724646078,-500.0,0.00012876,2]
[339595066,1727724646088,-287.999747,0.00012876,2]
[339595067,1727724646097,-500.0,0.00012876,2]
[339595069,1727724646106,-500.0,0.00012876,2]
[339595071,1727724646117,-500.0,0.00012876,2]
[339595073,1727724646127,-500.0,0.00012876,2]
[339595075,1727724646136,-151.0,0.00012876,2]
[339595077,1727724646146,-151.0,0.00012876,2]
[339595079,1727724646155,-151.0,0.00012876,2]
[339595081,1727724646165,-151.0,0.00012876,2]
[339595083,1727724646175,-151.0,0.00012876,2]
[339595085,1727724646184,-266.215971,0.00012876,2]
[339595087,1727724646194,-151.0,0.00012876,2]
[339595088,1727724646203,-151.0,0.00012876,2]
[339595090,1727724646212,-151.0,0.00012876,2]
[339595092,1727724646222,-151.0,0.00012876,2]
[339595094,1727724646231,-151.0,0.00012876,2]
[339595096,1727724646241,-151.0,0.00012876,2]
[339595098,1727724646251,-151.0,0.00012876,2]
[339595100,1727724646261,-151.0,0.00012876,2]
[339595102,1727724646270,-249.60652,0.00012876,2]
[339595104,1727724646280,-261.6473742,0.00012876,2]
[339595106,1727724646289,-500.0,0.00012876,2]
[339595108,1727724646299,-500.0,0.00012876,2]
[339595110,1727724646308,-502.17212894,0.00012876,2]
[339595112,1727724646318,-326.42909025,0.00012876,2]
[339595114,1727724646327,-500.0,0.00012876,2]
[339595116,1727724646337,-500.0,0.00012876,2]
[339595118,1727724646346,-500.0,0.00012876,2]
[339595120,1727724646355,-500.0,0.00012876,2]
[339595122,1727724646365,-500.0,0.00012876,2]
[339595124,1727724646375,-500.0,0.00012876,2]
[339595126,1727724646385,-634.3078542,0.00012876,2]
[339595128,1727724646399,-500.0,0.00012876,2]
[339595130,1727724646409,-500.0,0.00012876,2]
[339595132,1727724646419,-500.0,0.00012876,2]
[339595134,1727724646431,-500.0,0.00012876,2]
[339595149,1727724646569,-500.0,0.00012876,2]
[339595151,1727724646581,-500.0,0.00012876,2]
[339595153,1727724646591,-176.13251197,0.00012876,2]
[339595155,1727724646601,-500.0,0.00012876,2]
[339595157,1727724646610,-502.87958854,0.00012876,2]
[339595159,1727724646620,-500.0,0.00012876,2]
[339595161,1727724646631,-500.0,0.00012876,2]
[339595163,1727724646640,-402.09600027,0.00012876,2]
[339595165,1727724646649,-501.85153743,0.00012876,2]
[339595167,1727724646659,-500.0,0.00012876,2]
[339595169,1727724646668,-500.0,0.00012876,2]
[339595171,1727724646678,-500.0,0.00012876,2]
[339595173,1727724646687,-500.0,0.00012876,2]
[339595175,1727724646697,-277.57456756,0.00012876,2]
[339595185,1727724646997,-222.42543244,0.00012876,2]
[339595186,1727724647006,-500.0,0.00012876,2]
[339595187,1727724647016,-500.64238587,0.00012876,2]
[339595188,1727724647025,-500.0,0.00012876,2]
[339595189,1727724647035,-500.0,0.00012876,2]
[339595190,1727724647045,-500.0,0.00012876,2]
[339595191,1727724647054,-282.76621835,0.00012876,2]
[339595192,1727724647067,-217.23378165,0.00012876,2]
[339595193,1727724647077,-500.0,0.00012876,2]
[339595194,1727724647086,-500.0,0.00012876,2]
[339595195,1727724647096,-592.35891018,0.00012876,2]
[339595196,1727724647105,-500.0,0.00012876,2]
[339595197,1727724647115,-501.02543898,0.00012876,2]
[339595198,1727724647124,-500.0,0.00012876,2]
[339595199,1727724647133,-485.96299794,0.00012876,2]
[339595200,1727724647143,-500.0,0.00012876,2]
[339595201,1727724647152,-500.0,0.00012876,2]
[339595202,1727724647162,-500.0,0.00012876,2]
[339595203,1727724647173,-500.0,0.00012876,2]
[339595204,1727724647183,-500.0,0.00012876,2]
[339595205,1727724647192,-458.14354006,0.00012876,2]
[339595206,1727724647201,-500.0,0.00012876,2]
[339595207,1727724647211,-500.0,0.00012876,2]
[339595208,1727724647220,-500.0,0.00012876,2]
[339595209,1727724647229,-500.0,0.00012876,2]
[339595210,1727724647238,-500.0,0.00012876,2]
[339595211,1727724647247,-500.0,0.00012876,2]
[339595212,1727724647257,-500.0,0.00012876,2]
[339595213,1727724647266,-500.0,0.00012876,2]
[339595214,1727724647275,-500.0,0.00012876,2]
[339595215,1727724647285,-500.0,0.00012876,2]
[339595216,1727724647294,-507.30927311,0.00012876,2]
[339595217,1727724647304,-500.0,0.00012876,2]
[339595218,1727724647313,-500.0,0.00012876,2]
[339595219,1727724647323,-500.0,0.00012876,2]
[339595220,1727724647332,-500.0,0.00012876,2]
[339595221,1727724647342,-500.0,0.00012876,2]
[339595222,1727724647352,-500.0,0.00012876,2]
[339595223,1727724647362,-500.0,0.00012876,2]
[339595224,1727724647372,-500.0,0.00012876,2]
[339595225,1727724647381,-500.0,0.00012876,2]
[339595226,1727724647391,-500.0,0.00012876,2]